Cogmind - Beta 10.2 --- EXPLORER MODE // 2021.09.19 @ 22:16:38 Player: Skitgris Result: Self-destructed Performance ------------- Evolutions (2) 1000 Regions Visited (4) 800 Robots Destroyed (17) 85 Value Destroyed (520) 520 Prototype IDs (1) 20 Alien Tech Used (0) 0 Bonus (200) 200 TOTAL SCORE: 2625 Bonus ------- Pacifist 200 Cogmind --------- Core Integrity 241/550 Matter 300/300 Energy 250/250 System Corruption 0% Temperature Cool (355) Movement Treading (180) Ox1 Location -8/Materials Parts ------- > --- POWER (1) -------- Ion Engine > --- PROPULSION (4) --- Light Treads Wheel Wheel > --- UTILITY (3) ------ Medium Storage Unit Structural Scanner Utility Shielding > --- WEAPON (4) ------- Improved Medium Laser Improved Medium Laser Improved Medium Laser > --- INVENTORY (8) ---- Light Nuclear Core Structural Scanner Power Shielding EM Pulse Gun Improved Medium Laser Peak State ------------ > --- POWER ------------ Ion Engine > --- PROPULSION ------- Light Treads Light Treads Wheel Wheel > --- UTILITY ---------- Medium Storage Unit Structural Scanner Utility Shielding > --- WEAPON ----------- Improved Medium Laser Improved Medium Laser Improved Medium Laser Improved Medium Laser > --- INVENTORY -------- Light Nuclear Core Structural Scanner Power Shielding EM Pulse Gun Improved Medium Laser Improved Medium Laser [Rating: 21] Favorites ----------- Power Ion Engine Engine Ion Engine Propulsion Light Treads Treads Light Treads Leg Aluminum Leg Wheel Wheel Utility Medium Storage Unit Device Structural Scanner Storage Medium Storage Unit Protection Utility Shielding Weapon Improved Medium Laser Energy Gun Improved Medium Laser Build | -11 -10 -9 -9 -8 ------- Run | Scr Mat Mat Min Mat Slots Evolved 5 | . 1 2 . 2 Power . | . . . . . Propulsion 2 | . . 2 . . Utility 1 | . 1 . . . Weapon 2 | . . . . 2 Parts Attached 14 | . 1 8 2 3 Power . | . . . . . Engine . | . . . . . Core . | . . . . . Reactor . | . . . . . Propulsion 7 | . . 5 2 . Treads 2 | . . 2 . . Leg . | . . . . . Wheel 5 | . . 3 2 . Hover . | . . . . . Flight . | . . . . . Utility 1 | . 1 . . . Device 1 | . 1 . . . Storage . | . . . . . Processor . | . . . . . Hackware . | . . . . . Protection . | . . . . . Artifact . | . . . . . Weapon 6 | . . 3 . 3 Energy Gun 6 | . . 3 . 3 Energy Cannon . | . . . . . Ballistic Gun . | . . . . . Ballistic Cannon . | . . . . . Launcher . | . . . . . Special Weapon . | . . . . . Impact Weapon . | . . . . . Slashing Weapon . | . . . . . Piercing Weapon . | . . . . . Special Melee Weapon . | . . . . . Unidentified Prototypes 1 | . . 1 . . Parts Lost 4 | . . 1 1 2 Power . | . . . . . Propulsion 2 | . . . 1 1 Utility . | . . . . . Weapon 2 | . . 1 . 1 Highest Loss Streak 1 | . . 1 1 1 Average Slot Usage (%) 96 | . 100 97 95 90 Engine 10 | . 12 10 10 8 Treads 15 | . . 18 20 9 Leg 7 | . 25 11 . . Wheel 10 | . . 8 15 16 Device 10 | . 12 10 10 8 Storage 10 | . 12 10 10 8 Protection 10 | . 12 10 10 8 Energy Gun 21 | . 25 18 20 30 Naked Turns . | . . . . . Heaviest Build 27 | 17 18 21 21 27 Greatest Support 40 | 20 20 40 20 20 Greatest Overweight (x) 2 | . . 2 2 1 Average Overweight (x) . | . . . 1 1 Largest Inventory Capacity 8 | 8 8 8 8 8 Average Capacity 8 | 8 8 8 8 8 Most Carried 8 | 7 6 8 8 7 Average Carried 6 | 7 6 6 8 5 Final Capacity 8 | 8 8 8 8 8 Final Carried 8 | 7 6 8 8 5 Class Distribution -------------------- 87% | Hacker-Mutant 12% | Hacker-Tank Dominant Class ---------------- Hacker-Mutant | -10/Materials Hacker-Mutant | -9/Materials Hacker-Mutant | -9/Mines Hacker-Tank | -8/Materials Resources | -11 -10 -9 -9 -8 ----------- Run | Scr Mat Mat Min Mat Matter Collected 325 | 200 . 85 20 20 Remotely . | . . . . . Salvage Created 789 | . . 358 259 172 Parts 30 | . . 20 5 5 Haulers Intercepted 1 | . . 1 . . Recyclers Shooed . | . . . . . Parts Field Recycled . | . . . . . Retrieved Matter . | . . . . . Parts Self-Destructed . | . . . . . Prevented . | . . . . . Kills | -11 -10 -9 -9 -8 ------- Run | Scr Mat Mat Min Mat Combat Hostiles Destroyed 16 | . . 5 8 3 Guns 16 | . . 5 8 3 Classes Destroyed 10 | . . 5 3 2 Worker 1 | . . . 1 . Builder 1 | . . 1 . . Tunneler 1 | . . . 1 . Hauler 1 | . . 1 . . Mechanic 1 | . . 1 . . Watcher 1 | . . . . 1 Grunt 5 | . . 2 2 1 Duelist 1 | . . . . 1 Sentry 4 | . . 3 . 1 Assembled 5 | . . . 5 . Best Kill Streak 4 | . . 2 3 4 Combat Bots Only 3 | . . 2 3 2 Max Kills in Single Turn 1 | . . 1 1 1 Gunslinging . | . . . . . Exploded . | . . . . . Melee . | . . . . . Uniques/NPCs Destroyed 1 | . . . 1 . YI-UF0 (-9/Mines) Combat | -11 -10 -9 -9 -8 -------- Run | Scr Mat Mat Min Mat Damage Taken 968 | . 26 281 225 436 Core 345 | . . 29 7 309 Absorbed by Shields . | . . . . . Core Remaining (%) 97 | 100 100 . 91 . Volleys Fired 80 | . . 35 28 17 Largest 4 | . . 2 2 4 Hottest 224 | . . 112 112 224 Shots Fired 158 | . . 58 56 44 Gun 158 | . . 58 56 44 Cannon . | . . . . . Launcher . | . . . . . Special . | . . . . . Kinetic . | . . . . . Thermal 144 | . . 44 56 44 Explosive . | . . . . . Electromagnetic 14 | . . 14 . . Robot Hit Streak 25 | . . 24 25 19 Robot Miss Streak 2 | . . 1 2 1 Penetration Max . | . . . . . Secondary Targets . | . . . . . Shots Hit Robots 120 | . . 42 44 34 Core Hits 39 | . . 13 17 9 Critical Hits . | . . . . . Critical Kills . | . . . . . Critical Parts Destroyed . | . . . . . Melee Attacks . | . . . . . Impact . | . . . . . Slashing . | . . . . . Piercing . | . . . . . Sneak Attacks . | . . . . . Combat Hostiles . | . . . . . Follow-up Attacks . | . . . . . Damage Inflicted 1683 | . . 612 616 455 Guns 1646 | . . 575 616 455 Cannons . | . . . . . Explosions 37 | . . 37 . . Melee . | . . . . . Ramming . | . . . . . Kinetic . | . . . . . Thermal 1530 | . . 459 616 455 Explosive . | . . . . . Electromagnetic 153 | . . 153 . . Impact . | . . . . . Slashing . | . . . . . Piercing . | . . . . . Highest Corruption . | . . . . . Average Corruption . | . . . . . Corruption Purged . | . . . . . Overload Shots . | . . . . . Overflow Damage . | . . . . . Projectiles . | . . . . . Explosions . | . . . . . Melee . | . . . . . Knockbacks . | . . . . . Impact . | . . . . . Kinetic . | . . . . . Secondary . | . . . . . Self-Inflicted Damage 18 | . . 18 . . Shots 1 | . . 1 . . Rammed . | . . . . . Targets Rammed . | . . . . . Kicked . | . . . . . Crushed . | . . . . . Highest Temperature 627 | . . 126 459 627 Average Temperature 161 | . . 51 137 357 Received Heat Transfer 361 | . . 144 136 81 Effects 27 | . . . 5 22 Shutdowns 5 | . . . 2 3 Energy Bleed 6 | . . . 3 3 Interference 2 | . . . . 2 Short Circuit 5 | . . . . 5 Damage (minor) 1 | . . . . 1 Damage (major) 5 | . . . . 5 Damage (core) 3 | . . . . 3 Siege Activations . | . . . . . Robots Corrupted . | . . . . . Combat Hostiles . | . . . . . Parts Fried 1 | . . 1 . . Impact Corruptions . | . . . . . Robots Melted . | . . . . . Combat Hostiles . | . . . . . Parts Melted 9 | . . 1 . 8 Heat Transferred 3338 | . . 1007 1332 999 Parts Sabotaged . | . . . . . Parts Stolen . | . . . . . Parts Stripped . | . . . . . Power Chain Reactions 1 | . . 1 . . Missiles Intercepted . | . . . . . Alert | -11 -10 -9 -9 -8 ------- Run | Scr Mat Mat Min Mat Peak Influence 177 | . . 177 110 112 Initial 48 | . . . 48 30 Average 73 | . . 84 90 78 Maximum Alert Level . | . . . . . Low Security (%) 100 | 100 100 100 100 100 Level 1 . | . . . . . Level 2 . | . . . . . Level 3 . | . . . . . Level 4 . | . . . . . Level 5 . | . . . . . High Security . | . . . . . Max Security . | . . . . . Squads Dispatched 2 | . . . . 2 Investigation . | . . . . . Extermination . | . . . . . Reinforcement 2 | . . . . 2 Assault . | . . . . . Garrison . | . . . . . Intercept . | . . . . . Construction Impeded . | . . . . . Haulers Reinforced . | . . . . . Stealth | -11 -10 -9 -9 -8 --------- Run | Scr Mat Mat Min Mat Distress Signals 2 | . . . . 2 Communications Jammed . | . . . . . Distress Signals . | . . . . . Times Spotted 24 | . . 6 8 10 Peak Tracking Total 6 | . . 4 2 6 Tactical Retreats . | . . . . . Traps | -11 -10 -9 -9 -8 ------- Run | Scr Mat Mat Min Mat Traps Triggered 1 | . 1 . . . Indirectly . | . . . . . Trap Hack Attempts . | . . . . . Triggered . | . . . . . Disarmed . | . . . . . Reprogrammed . | . . . . . Reused . | . . . . . Traps Extracted . | . . . . . Installed . | . . . . . Triggered . | . . . . . Machines | -11 -10 -9 -9 -8 ---------- Run | Scr Mat Mat Min Mat Machines Disabled 3 | . . . 3 . Max in Single Turn 1 | . . . 1 . Machines Sabotaged . | . . . . . Garrisons Compromised . | . . . . . Overloaded Fab Kills . | . . . . . Fab Network Shutdowns . | . . . . . Hacking | -11 -10 -9 -9 -8 --------- Run | Scr Mat Mat Min Mat Machines Accessed 2 | . 2 . . . Terminals 2 | . 2 . . . Fabricators . | . . . . . Repair Stations . | . . . . . Recycling Units . | . . . . . Scanalyzers . | . . . . . Garrison Access . | . . . . . Total Hacks 5 | . 5 . . . Successful 5 | . 5 . . . Failed . | . . . . . Catastrophic . | . . . . . Database Lockouts . | . . . . . Manual 4 | . 4 . . . Terminals 5 | . 5 . . . Fabricators . | . . . . . Repair Stations . | . . . . . Recycling Units . | . . . . . Scanalyzers . | . . . . . Garrison Access . | . . . . . Terminal Hacks 3 | . 3 . . . Level Access Points 1 | . 1 . . . Branch Access Points 1 | . 1 . . . Locate Traps 1 | . 1 . . . Fabricator Hacks . | . . . . . Repair Station Hacks . | . . . . . Recycling Unit Hacks . | . . . . . Scanalyzer . | . . . . . Garrison Access Hacks . | . . . . . Unauthorized Hacks 2 | . 2 . . . Terminals 2 | . 2 . . . Botnet 2 | . 2 . . . Fabricators . | . . . . . Repair Stations . | . . . . . Recycling Units . | . . . . . Scanalyzers . | . . . . . Garrison Access . | . . . . . Data Cores Recovered . | . . . . . Used . | . . . . . Hacking Detections 2 | . 2 . . . Full Trace Events . | . . . . . Feedback Events . | . . . . . Feedback Blocked . | . . . . . Robot Schematics Acquired . | . . . . . Robots Built . | . . . . . Matter . | . . . . . Time . | . . . . . Total Robot Build Rating . | . . . . . Part Schematics Acquired . | . . . . . Parts Built . | . . . . . Matter . | . . . . . Time . | . . . . . Total Part Build Rating . | . . . . . Parts Repaired . | . . . . . Time . | . . . . . Parts Recycled . | . . . . . Recycled Matter . | . . . . . Retrieved Matter . | . . . . . Retrieved Components . | . . . . . Parts Scanalyzed . | . . . . . Part Schematics Acquired . | . . . . . Parts Damaged . | . . . . . Bothacking | -11 -10 -9 -9 -8 ------------ Run | Scr Mat Mat Min Mat Used RIF Installer . | . . . . . Robots Hacked . | . . . . . Non-combat . | . . . . . Combat . | . . . . . Robot Hacks Applied . | . . . . . Relay Couplers Released . | . . . . . Robots Rewired . | . . . . . Allies Hacked . | . . . . . Hacks Repelled . | . . . . . Allies | -11 -10 -9 -9 -8 -------- Run | Scr Mat Mat Min Mat Total Allies . | . . . . . Largest Group . | . . . . . Highest-Rated Group . | . . . . . Highest-Rated Ally . | . . . . . Total Orders . | . . . . . Ally Attacks . | . . . . . Total Damage . | . . . . . Kills . | . . . . . Allies Corrupted . | . . . . . Allies Melted . | . . . . . Intel | -11 -10 -9 -9 -8 ------- Run | Scr Mat Mat Min Mat Robot Analysis Total . | . . . . . Derelict Logs Recovered . | . . . . . Drone Launches . | . . . . . Drone Recoveries . | . . . . . Exploration | -11 -10 -9 -9 -8 ------------- Run | Scr Mat Mat Min Mat Turns Passed 785 | 2 112 276 297 98 Spaces Moved 492 | 2 93 131 222 44 Core . | . . . . . Treads 8 | . . 1 . 7 Legs 155 | 2 93 60 . . Wheels 329 | . . 70 222 37 Hover . | . . . . . Flight . | . . . . . Fastest Speed 90 | 120 120 90 90 90 Average Speed 103 | 120 120 107 94 104 Slowest Speed 180 | 120 120 160 100 180 Overloaded Moves . | . . . . . Propulsion Burnouts . | . . . . . Robots Hopped . | . . . . . Cave-ins Triggered . | . . . . . Exploration Rate (%) 17 | 1 19 13 47 8 Regions Visited 4 Branch Regions 1 Pre-discovered Areas . | . . . . . Known Exits Taken 4 | 1 1 1 1 . Unknown Exits Taken . | . . . . . Scrap Searched . | . . . . . Spaces Dug . | . . . . . Terrain Destroyed 5 | . . 5 . . Melee . | . . . . . Projectile . | . . . . . AOE 5 | . . 5 . . Terrain Rammed . | . . . . . Walls Destroyed . | . . . . . Machines Disabled . | . . . . . Actions | -11 -10 -9 -9 -8 --------- Run | Scr Mat Mat Min Mat Total 619 | 1 93 208 252 65 Wait 24 | . . 24 . . Move 488 | 1 92 130 221 44 Hop . | . . . . . Pick Up 6 | . . 6 . . Fast Attach 4 | . . 3 1 . Attach 7 | . 1 3 . 3 Detach . | . . . . . Swap 3 | . . 2 1 . Drop 7 | . . 5 1 1 Fire 80 | . . 35 28 17 Melee . | . . . . . Ram . | . . . . . Kick . | . . . . . Crush . | . . . . . Escape Stasis . | . . . . . Rewire . | . . . . . Trap . | . . . . . Miscellaneous . | . . . . . Route ------- -11/Scrapyard -10/Materials (discovered 5 exits: *Mat x3 / Min x2) -9/Materials (discovered 2 exits: *Min / *Sto) -9/Mines -8/Materials History --------- Turn | Location | Event 1 | -11/Scrapyard | Identified exit to Materials 1 | -11/Scrapyard | Discovered exit to Materials (range 1) 3 | -11/Scrapyard | Entered Materials 3 | -10/Materials | Evolved 1 slot: Utility x1 61 | -10/Materials | Identified exit to Materials 61 | -10/Materials | Identified exit to Mines 115 | -10/Materials | Entered another Materials area 115 | -9/Materials | Evolved 2 slots: Propulsion x2 193 | -9/Materials | Identified exit to Storage 193 | -9/Materials | Discovered exit to Storage (range 12) 307 | -9/Materials | Build established: Hacker-Mutant 377 | -9/Materials | Identified exit to Mines 377 | -9/Materials | Discovered exit to Mines (range 13) 391 | -9/Materials | Entered Mines 397 | -9/Mines | Assembled infested the area 560 | -9/Mines | Destroyed YI-UF0 654 | -9/Mines | Identified exit to Materials 654 | -9/Mines | Discovered exit to Materials (range 10) 688 | -9/Mines | Entered Materials 688 | -8/Materials | Evolved 2 slots: Weapon x2 759 | -8/Materials | Core integrity fell below 50% 786 | -8/Materials | Self-destructed Last Messages --------------- 00762_ Overheating: Utility Shielding damaged (-36). 00762_ Overheating: Imp. Medium Laser damaged (-19). 00762_ Overheating: Broken Wheel damaged (-11). 00762_ Y-45 Defender heat spikes uncontrollably. 00763_ Hvy. Assault Rifle melted. 00763_ Imp. Ion Engine melted. 00763_ Heat Sink melted. 00763_ Beam Rifle melted. 00763_ Y-45 Defender destroyed. 00766_ Power failure, Ion Engine shutdown. 00766_ Acquired 20 matter. 00767_ Imp. Medium Laser permanently disabled. 00767_ Overheating: Short circuit. 00768_ Overheating: Energy bleed (-55). 00772_ Overheating: Broken Wheel damaged (-9). 00772_ Overheating: Med. Storage Unit damaged (-62). 00772_ W-25 Informer distress signal alerts nearby ally. 00777_ Imp. Medium Laser permanently disabled. 00777_ Overheating: Short circuit. 00781_ Overheating: Energy bleed (-27). Map ----- +----------------------------------------------------+ | ?????????????????????????????????????????????????? | | ?????????????????????????????????????????????????? | | ?????????????????????????????????????????????????? | | ?????????????????????????????????????????????????? | | ?????????????????????????????????????????????????? | | ?????????????????????????????????????????????????? | | ?????????????????????????????????????????????????? | | ?????????????????????????????????????????????????? | | ?????????????????????????????????????????????????? | | ?????????????????????????????????????????????????? | | ???????????????????????u ???????????????????????? | | ??????????????????????# ???????????????????????? | | ??????????????????????# ???????????????????????? | | ??????????????????????# ???????????????????????? | | ??????????????????????# ???????????????????????? | | ??????????????????????# ???????????????????????? | | ??????????????????????# g #??????????????????????? | | ??????????????????????# #??????????????????????? | | ??????????????????????# #??????????????????????? | | ?????????????????????## #??????????????????????? | | ?????????????????????? #??????????????????????? | | ??????????????????????# gg#??????????????????????? | | ??????????????????????# w #???????#??????????????? | | ??????????????????????# #???### ##?????????????? | | ??????????????????????# #?? #?????????????? | | ??????????????????????# r@### """ #?????????????? | | ??????????????????????# b / """ #?????????????? | | ????????????????####### !### """ #?????????????? | | ????????? %#?? #?????????????? | | ????????????????########+####?""" #?????????????? | | ????????????????????# #?""" #?????????????? | | ?#+##+##+##?????????# """ #??"" #?????????????? | | ?+ #?????????# """ #?? !#?????????????? | | ?# ########### """ #???"? #?????????????? | | ?# + + """ #????????????????????? | | ?# % ########### """ #????????????????????? | | ?# #?????????# #????????????????????? | | ?# #?????????# "" #????????????????????? | | ?# #?????????# S"" #????????????????????? | | ?# #?????????# "" #????????????????????? | | ?# [ #??####???# #????????????????????? | | #######+### #???#########????????????????????? | | # = #????????????????????????????????? | | # % #????????????????????????????????? | | # #????????????????????????????????? | | # ##### #????????????????????????????????? | | # #???? #????????????????????????????????? | | # #???? #????????????????????????????????? | | # #???? #????????????????????????????????? | | #####????? " #????????????????????????????????? | +----------------------------------------------------+ Best States ------------- Heat Dissipation 31 Energy Generation 10 Energy Capacity 250 Matter Stores 300 Matter Capacity 300 Sight Range 16 Terrain Scan Density 10 Resistance: KI 35 Resistance: TH 35 Resistance: EX 35 Resistance: EM 35 Resistance: I 35 Resistance: S 35 Resistance: P 35 Utility Shielding 33 Evasion (%) 42 Recoil Reduction 2 Offensive Hacking 20 Item Schematics ----------------- None Robot Schematics ------------------ None Fabricated ------------ Nothing Alien Tech Used ----------------- None Achievements -------------- None Challenges ------------ None Game ------ Seed AccelerationLargeInjector Manual? 0 Play Time 00:09:52 Cumulative 39.1 hours Start 2021.09.19 @ 22:02:36 End 2021.09.19 @ 22:16:38 Sessions 1 Manual Loads 0 Difficulty Explorer Special Mode None Game No. 48 Rogue 17 Adventurer 25 Explorer 6 Win Type - Total 0 Types 0/0/0/0/0/0/0/0/0 Lore% 21 Gallery% 37 Achievement% 29 Wizard Run 0 Options --------- ASCII 0 Keyboard 0 Movement Mouse Keybinds 0 Fullscreen 0 Font 32/Smallcaps Map View 76x50 Tactical HUD 1 Map Filters NONE Filters LOW_CONTRAST(13,24,33) Steam 1 RUN: 1db8a4b5-d802-4830-a1e8-2ed833d115ca